[Event "American Cup Blitz 2024"]
[Site "Saint Louis"]
[Date "2024.03.21"]
[Round "4.1"]
[White "Sevian, Samuel"]
[Black "Durarbayli, Vasif"]
[Result "0-1"]
[ECO "E48"]
[WhiteElo "2697"]
[BlackElo "2627"]
[Annotator "TA"]
[PlyCount "136"]
[EventDate "2024.03.21"]
[EventType "swiss"]
[EventCountry "USA"]
[SourceTitle "playchess.com"]
[Source "ChessBase"]
[SourceQuality "1"]
[TimeControl "180+2"]

{[%evp 18,136,16,0,15,0,0,0,0,0,0,-18,-10,-15,0,0,-16,-15,56,29,43,50,26,-12,54,43,41,38,41,0,0,0,0,0,0,0,0,0,0,0,6,-35,-26,-305,-327,-315,-319,-392,-391,-418,-417,-445,-441,-569,-490,-703,-499,-531,-478,-539,-539,-546,-489,-533,-545,-536,-537,-647,-600,-566,-508,-543,-475,-455,-439,-683,-675,-1000,-833,-29937,-11884,-29978,-831,-29941,-836,-2500,-766,-790,-789,-1353,-762,-685,-417,-503,-539,-679,-679,-736,-625,-791,-600,-563,0,-882,-796,-29975,-29978,-29977,-29979,-29979,-29980,-29980,-29981,-29981,-29979,-29979,0,-29981,-29981,-29982,-29983]} 1. d4 {[%emt 0:00:01]} Nf6 {[%emt 0:00:00]} 2. c4 {[%emt 0:00:01]} e6 {[%emt 0:00:01]} 3. Nc3 {[%emt 0:00:01]} Bb4 {[%emt 0:00:01]} 4. e3 {[%emt 0:00:03]} O-O {[%emt 0:00:02]} 5. Bd3 {[%emt 0:00:04]} c5 {[%emt 0:00:01]} 6. Nge2 {[%emt 0:00:02]} d5 {[%emt 0:00:01]} 7. cxd5 {[%emt 0:00:03]} cxd4 {[%emt 0:00:01]} 8. exd4 {[%emt 0:00:02]} Nxd5 {[%emt 0:00:01]} 9. O-O {[%emt 0:00:05]} Nc6 {[%emt 0:00:02]} 10. Bc2 {[%emt 0:00:05]} Qh4 {[%emt 0:00:25]} 11. a3 {[%emt 0:00:07]} Bxc3 {[%emt 0:00:17]} 12. bxc3 {[%emt 0:00:04]} Rd8 {[%emt 0:00:01] The position is equal.} 13. Qd3 {[%emt 0:00:08]} e5 {[%emt 0:00:43]} 14. c4 {[%emt 0:00:18]} Nde7 {[%emt 0:00:01]} 15. d5 {[%emt 0:00:31][%cal Bd4d5,Bd5c6,Bc6c7][%mdl 32]} Bf5 {[%emt 0:00:02]} 16. Qc3 {[%emt 0:00:12]} Bxc2 {[%emt 0:00:40]} 17. dxc6 {[%emt 0:00:09] White is weak on the light squares} (17. Qxc2 Na5 18. f4 Rac8 $17) 17... Bd3 {[%emt 0:00:29]} (17... Be4 $11 18. c7 (18. Qxe5 Nxc6 19. Qb2 b6 $17) 18... Rd7) 18. c7 $14 {[%emt 0:01:03]} Rd7 {[%emt 0:00:01] The board is on fire.} 19. Rd1 {[%emt 0:00:01]} e4 {[%emt 0:00:01]} 20. Bb2 {[%emt 0:00:06]} (20. Bf4 $5 Rc8 21. Bg3 $14) 20... Qf6 {[%emt 0:00:35]} (20... f6 $11) 21. Qxf6 {[%emt 0:00:19]} gxf6 {[%emt 0:00:01]} 22. Nf4 {[%emt 0:00:05][%cal Be2f4,Bf4h5,Bh5f6][%mdl 32]} f5 {[%emt 0:00:14][%cal Oa8c8]} 23. Nh5 {[%emt 0:00:01] [#] Black must now prevent Nf6+.} Rxc7 {[%emt 0:01:46][%cal Oe7g6]} 24. Nf6+ {[%emt 0:00:01]} Kf8 {[%emt 0:00:00]} 25. Nxh7+ {[%emt 0:00:01]} Ke8 {[%emt 0:00:00]} 26. Nf6+ {[%emt 0:00:02]} Kf8 27. Rac1 {[%emt 0:00:08]} Rac8 {[%emt 0:00:00]} 28. c5 {[%emt 0:00:01]} Ng8 {[%emt 0:00:00]} 29. Nh7+ {[%emt 0:00:11]} Ke7 {[%emt 0:00:00][%cal Of7f6] Threatens to win with ...f6!} 30. a4 $2 {[%emt 0:00:01][%mdl 8192] [#] Black converts the advantage convincingly.} (30. Ng5 $1 $11 {and White is okay.}) 30... f6 $1 $19 {[%emt 0:00:00][%cal Oe7e6]} (30... Rxc5 31. Rxc5 (31. Ba3 b6 $11) 31... Rxc5 32. Ba3 $14) 31. c6 {[%emt 0:00:05]} bxc6 {[%emt 0:00:00]} 32. Ba3+ {[%emt 0:00:02]} c5 {[%emt 0:00:00]} 33. f3 {[%emt 0:00:02]} Ke6 {[%emt 0:00:00]} 34. fxe4 {[%emt 0:00:02]} fxe4 {[%emt 0:00:00]} 35. Rc3 {[%emt 0:00:02]} Rxh7 {[%emt 0:00:00]} 36. Re1 {[%emt 0:00:01]} (36. Rxc5 $142 Rxc5 37. Bxc5) 36... Rd7 {[%emt 0:00:00] And now ...c4 would win.} 37. Bxc5 {[%emt 0:00:02]} Rd5 {[%emt 0:00:00]} 38. Bb4 {[%emt 0:00:02]} Rxc3 39. Bxc3 {[%emt 0:00:01]} Rc5 {[%emt 0:00:00]} 40. Bd4 {[%emt 0:00:01]} Ra5 {[%emt 0:00:00]} 41. Ra1 {[%emt 0:00:02]} Ne7 {[%emt 0:00:00]} 42. h4 {[%emt 0:00:03]} Nc6 {[%emt 0:00:00]} 43. Be3 {[%emt 0:00:01]} Rh5 {[%emt 0:00:00]} 44. g3 {[%emt 0:00:02]} Ne5 {[%emt 0:00:00]} 45. Bxa7 {[%emt 0:00:01]} Nc4 {[%emt 0:00:00] Repels a5} 46. Bd4 {[%emt 0:00:02]} (46. a5 $142 Nxa5 47. g4) 46... e3 {[%emt 0:00:00]} 47. Kg2 {[%emt 0:00:04]} e2 {[%emt 0:00:00]} 48. Re1 {[%emt 0:00:03]} Rf5 {[%emt 0:00:00] ( -> ...Rf1)} 49. Bf2 {[%emt 0:00:02]} Ra5 {[%emt 0:00:00]} (49... Ne5 $142 50. Bc5 Rf1 51. Rxe2 Bxe2 52. g4 Rf4 (52... Nxg4 53. h5 Kf5 54. Kg3 Rd1 55. Bf2 Bf1 56. Kh4 Nxf2 57. Kg3 Ng4 58. Kh4 Rd3 59. a5 Rh3#) 53. Bb6 Bf3+ (53... Rxg4+ $2 54. Kf2 $19) (53... Rxa4 $2 54. h5 $19) (53... Bxg4 $2 54. a5 $19) (53... Ba6 $2 54. g5 $19) 54. Kf2 Bxg4+ (54... Rxa4 $2 55. h5 $19) 55. Kg3 Rf3+ (55... Rxa4 56. Be3 $19) 56. Kh2 Bh3 (56... Rh3+ $2 57. Kg1 $19) 57. a5 Ng4+ 58. Kh1 Rf1+ 59. Bg1 Ke5 (59... Ra1 60. a6 Ra2 61. Bd4 Rh2+ 62. Kg1 Rd2 63. Kh1 Rxd4 64. h5 Rd1#) 60. a6 Kf4 61. h5 Kg3 62. a7 Bg2#) 50. Ra1 {[%emt 0:00:02]} Kf5 {[%emt 0:00:00]} (50... Be4+ $142 51. Kg1 Rd5 52. Re1 Rd1 53. g4 Ne5 54. Kh2 Nf3+ (54... Nxg4+ $2 55. Kg3 $19) 55. Kg3 Nxe1 56. Bxe1 Rxe1 57. Kf2 Rg1 (57... Rf1+ $2 58. Kxe2 Ra1 59. Kd2 $19) 58. Kxe2 Ke5 (58... Rxg4 {is a self mate.} 59. Kd2 Rxh4 60. Kc3 Ke5 61. Kb4 f5 62. Kc4 f4 63. Kc5 f3 64. a5 f2 65. a6 f1=Q 66. a7 Rh2 67. Kb6 Qb1+ 68. Kc7 Qb7+ 69. Kd8 Rh8#) (58... Rg2+ 59. Ke3 Ke5 60. h5 Rxg4 61. Kf2 Rg2+ 62. Kf1 Kf4 63. h6 Ke3 64. h7 Rh2 65. h8=Q Rxh8 66. Kg1 Rh1#) 59. Kf2 Rxg4 (59... Rg2+ 60. Ke3 Rxg4 61. Ke2 Kd4 62. h5 Rg2+ 63. Kd1 Bf3+ 64. Ke1 Ke3 65. Kf1 Rh2 66. Kg1 Rh1#) 60. Ke1 Rf4 (60... Rxh4 {gets mated.} 61. Ke2 Rh2+ 62. Kd1 Kd4 63. a5 Bc2+ 64. Ke1 Ke3 65. Kf1 Be4 66. Kg1 Rh1#) (60... Rg1+ 61. Kd2 Kd4 62. Ke2 Rg2+ 63. Kd1 Bd3 64. a5 Rb2 65. Kc1 Kc3 66. h5 Rb1#) 61. h5 Bd3 62. Kd1 Kd4 (62... Rxa4 {leads to mate.} 63. Kd2 Kd4 64. h6 Ra2+ 65. Kd1 Ke3 66. Kc1 Bh7 67. Kd1 Ra1#) 63. Kd2 Rf2+ 64. Ke1 Ke3 65. h6 Rf1#) 51. Kf3 {[%emt 0:00:01]} Re5 {[%emt 0:00:00]} (51... Ne5+ $142 52. Ke3 Rd5) 52. g4+ {[%emt 0:00:01]} Kg6 {[%emt 0:00:00]} 53. h5+ {[%emt 0:00:01]} Kg7 {[%emt 0:00:00]} 54. Be1 {[%emt 0:00:02]} Na5 {[%emt 0:00:00] ...Nb3 is the strong threat.} 55. Bc3 {[%emt 0:00:02]} Rc5 {[%emt 0:00:00] ...Nb3 would now be deadly.} 56. Be1 {[%emt 0:00:03]} Ba6 {[%emt 0:00:00]} 57. Rb1 {[%emt 0:00:02]} Nc4 {[%emt 0:00:00] Dodges Rb6} 58. Ke4 {[%emt 0:00:04]} Nd6+ {[%emt 0:00:00]} 59. Kf3 {[%emt 0:00:02]} Nc4 {[%emt 0:00:00] Repels Rb6} (59... Nf7 $19 60. Rb6 Ne5+ 61. Kf2 Nxg4+ 62. Kg3 Bc8) 60. Kf4 $2 {[%emt 0:00:01][%mdl 8192]} (60. Ke4 $11 Ne5 61. Rb6 Bd3+ 62. Kd4 Rc4+ 63. Ke3) 60... Ne5 {[%emt 0:00:00] aiming for ...Nd3+.} 61. Ra1 {[%emt 0:00:02]} Nd3+ {[%emt 0:00:00]} 62. Ke3 {[%emt 0:00:02]} Nxe1 {[%emt 0:00:00]} 63. Rxe1 {[%emt 0:00:01] KRB-KR} Ra5 {[%emt 0:00:00]} 64. Kf2 {[%emt 0:00:05]} Rxa4 {[%emt 0:00:00]} 65. Kf3 {[%emt 0:00:01]} Ra3+ {[%emt 0:00:00]} 66. Kf2 {[%emt 0:00:02]} Ra4 {[%emt 0:00:00]} 67. Kf3 {[%emt 0:00:01]} Kh6 {[%emt 0:00:00]} 68. Rc1 {[%emt 0:00:01]} Rd4 {[%emt 0:00:00] Weighted Error Value: White=0.36/Black=0.21 (precise) .  Loses game:     	White=1     	---        Mistake:       	White=2     	Black=2      Inaccurate:     	White=5     	---        OK:         	White=13    	Black=16     Best:        	White=5     	Black=4      Strong:       	---       	Black=1} 0-1

[Event "American Cup Blitz 2024"]
[Site "Saint Louis"]
[Date "2024.03.21"]
[Round "4.2"]
[White "Naroditsky, Daniel"]
[Black "Caruana, Fabiano"]
[Result "0-1"]
[ECO "C26"]
[WhiteElo "2619"]
[BlackElo "2804"]
[Annotator "TA"]
[PlyCount "68"]
[EventDate "2024.03.21"]
[EventType "swiss"]
[EventCountry "USA"]
[SourceTitle "playchess.com"]
[Source "ChessBase"]
[SourceQuality "1"]
[TimeControl "180+2"]

{[%evp 10,68,-1,0,0,-15,-3,-35,-12,-25,-32,-24,-23,-26,-16,-34,-4,-6,-11,-17,-20,-30,-22,-34,-33,-40,-34,-31,0,0,0,-23,0,-61,-14,-74,-98,-132,-137,-261,-254,-317,-138,-236,-168,-230,-233,-307,-30,-15,-22,-18,-24,-22,0,-1010,-987,-914,-920,-29997,-29998]} 1. e4 {[%emt 0:00:01]} e5 {[%emt 0:00:01]} 2. Nf3 {[%emt 0:00:02]} Nc6 {[%emt 0:00:01]} 3. Nc3 {[%emt 0:00:02]} Nf6 {[%emt 0:00:02]} 4. g3 {[%emt 0:00:05]} Bc5 {[%emt 0:00:07]} 5. Bg2 {[%emt 0:00:02]} d6 {[%emt 0:00:01]} 6. d3 {[%emt 0:00:02]} a5 {[%emt 0:00:03]} 7. O-O {[%emt 0:00:04]} h6 {[%emt 0:00:03]} 8. h3 {[%emt 0:00:02]} (8. Nd5 {hält die Spannung aufrecht.} Bg4 9. Be3 Nxd5 10. exd5 Nd4 11. c3) 8... Be6 {[%emt 0:00:06] Schwarz steht etwas besser.} 9. Be3 {[%emt 0:00:04]} Bxe3 {[%emt 0:00:11]} 10. fxe3 {[%emt 0:00:01]} Ne7 {[%emt 0:00:03]} 11. Nh4 {[%emt 0:00:07]} Qd7 {[%emt 0:00:10]} 12. Kh2 {[%emt 0:00:15]} c6 {[%emt 0:00:02]} (12... b5 $5) 13. d4 {[%emt 0:00:10][%cal Of1f6]} Qc7 {[%emt 0:00:21]} 14. a4 {[%emt 0:00:21]} d5 {[%emt 0:00:11]} 15. exd5 {[%emt 0:00:06]} Nexd5 {[%emt 0:00:06]} 16. Nxd5 {[%emt 0:00:05]} Nxd5 {[%emt 0:00:05]} 17. Qd2 {[%emt 0:00:35]} O-O-O {[%emt 0:00:03]} 18. Nf5 {[%emt 0:00:27]} h5 {[%emt 0:00:31]} 19. e4 {[%emt 0:00:06]} Nb6 {[%emt 0:00:32] ...g6 ist eine echte Drohung.} 20. Qxa5 {[%emt 0:00:04]} exd4 {[%emt 0:00:09]} (20... g6 $5 21. Nh4 exd4 $11) 21. e5 {[%emt 0:00:03]} (21. Nxg7 $11 Nc4 22. Qxc7+ Kxc7 23. Nxe6+ fxe6 24. Rf7+ Rd7 25. Raf1) 21... Kb8 {[%emt 0:00:05]} (21... h4 $1 $15 22. g4 (22. gxh4 $2 Rh5 $19) (22. Nxh4 Nc4 $17) (22. Nd6+ Kb8 $17) 22... Bxf5 23. Rxf5 Rhe8) 22. Qc5 {[%emt 0:00:22] [#]} (22. Nxg7 $11 {bleibt in der Remisbreite.} h4 23. Nxe6 hxg3+ 24. Kg1 fxe6 25. Ra3) 22... h4 $1 $17 {[%emt 0:00:19]} 23. Nxh4 {[%emt 0:00:08]} (23. g4 Bxf5) 23... Nc4 {[%emt 0:00:02]} 24. Nf5 {[%emt 0:00:11] Es drohte Ne3} (24. Rae1 $17 {war nötig.}) 24... Nxe5 $19 {[%emt 0:00:06]} 25. Kg1 {[%emt 0:00:04]} (25. Nxg7 $2 Ng4+ (25... Bxh3 $2 26. Kg1 $19) 26. Kg1 Qxg3 27. hxg4 Rh2 $19 (27... Bxg4 28. Qg5 $15)) (25. Nxd4 Rh5 26. Nxc6+ (26. Nxe6 $2 Ng4+ 27. Kg1 Qxg3 $19) 26... bxc6 (26... Qxc6 $2 27. Qxc6 bxc6 28. Rae1 $19) 27. Qb4+ Kc8 $19) 25... d3 {[%emt 0:00:04]} (25... Rh5 $19 {bietet bessere Gewinnchancen.} 26. g4 (26. Nxd4 $2 Nf3+ 27. Rxf3 Rxc5 $19) 26... Rhh8 (26... b6 27. Qa3 $15)) 26. cxd3 {[%emt 0:00:07]} (26. a5 $17 Nd7 27. Qc3) 26... Nxd3 {[%emt 0:00:02]} 27. Qe3 {[%emt 0:00:01] [#]} (27. Qc3 {ist eine bessere Verteidigung.}) 27... g6 $1 {[%emt 0:00:11]} (27... Nxb2 28. a5 $17) 28. Nd4 {[%emt 0:00:01] [#]} Bxh3 $1 {[%emt 0:00:09]} 29. Qxd3 $11 {[%emt 0:00:01] Zielt auf Qc3 ab.} Bxg2 30. Kxg2 {[%emt 0:00:01]} c5 {[%emt 0:00:02]} 31. Nb5 {[%emt 0:00:17]} Qc8 {[%emt 0:00:11][%mdl 1024] Schwarz hat Kompensation.} 32. Qe2 {[%emt 0:00:06][%mdl 8192]} (32. Qe4 $11 Qh3+ 33. Kf3 Qh5+ 34. Kf2 (34. Ke3 $2 Rhe8 $19) 34... Qh2+ 35. Kf3 Qh5+ 36. Kf2 (36. Ke3 $2 Rhe8 $19) 36... Qh2+ 37. Kf3 Qh5+) 32... Qh3+ $19 {[%emt 0:00:01]} 33. Kf2 {[%emt 0:00:02]} Rhe8 {[%emt 0:00:03]} ({Lieber nicht} 33... Qh2+ 34. Kf3 Qh5+ 35. Kf2 Qh2+ 36. Kf3 Qh5+ 37. Kf2 Qh2+ $11) 34. Qf3 {[%emt 0:00:03]} Rd2+ {[%emt 0:00:01] Gewichteter Fehlerwert: Weiß=0.70/Schwarz=0.32.  Verlustzug:     	Weiß=1     	---        Gewinn verpasst:   	---       	Schwarz=2     Fehler:       	Weiß=5     	Schwarz=1     Ungenau:       	Weiß=3     	Schwarz=2     OK:         	Weiß=5     	Schwarz=9     Bester:       	Weiß=2     	Schwarz=2} 0-1

[Event "American Cup Blitz 2024"]
[Site "Saint Louis"]
[Date "2024.03.21"]
[Round "4.3"]
[White "Dominguez Perez, Leinier"]
[Black "Kevlishvili, Robby"]
[Result "1/2-1/2"]
[ECO "B90"]
[WhiteElo "2749"]
[BlackElo "2524"]
[Annotator "TA"]
[PlyCount "187"]
[EventDate "2024.03.21"]
[EventType "swiss"]
[EventCountry "USA"]
[SourceTitle "playchess.com"]
[Source "ChessBase"]
[SourceQuality "1"]
[TimeControl "180+2"]

{[%evp 15,187,31,38,39,30,13,34,17,41,34,33,43,33,34,22,20,36,28,34,33,42,50,59,0,85,16,33,-53,26,-650,27,-78,0,-145,0,-6,0,-139,0,-153,-127,-183,0,-73,-45,-134,25,54,185,138,191,53,337,327,434,441,479,430,678,337,620,-23,0,-495,-126,-475,0,-300,-291,-286,-2,-36,-43,-46,-47,-47,-39,-47,0,-56,-20,-18,0,0,8,19,39,39,41,41,41,41,41,41,42,42,76,42,42,42,76,42,42,39,42,42,76,42,68,42,76,75,68,42,39,0,76,76,76,42,42,42,68,39,76,76,76,76,76,0,68,68,68,68,68,0,68,68,68,68,68,68,68,39,68,39,39,39,406,158,68,39,39,39,39,39,68,39,39,39,68,68,68,0,0,0,35,43,60,0,0,0,0,0]} 1. e4 {[%emt 0:00:01]} c5 {[%emt 0:00:01]} 2. Nf3 {[%emt 0:00:01]} d6 {[%emt 0:00:02]} 3. d4 {[%emt 0:00:01]} cxd4 {[%emt 0:00:01]} 4. Nxd4 {[%emt 0:00:01]} Nf6 {[%emt 0:00:02]} 5. Nc3 {[%emt 0:00:01]} a6 {[%emt 0:00:01]} 6. Be3 {[%emt 0:00:02]} e5 {[%emt 0:00:04]} 7. Nb3 {[%emt 0:00:01]} Be6 {[%emt 0:00:04]} 8. f3 {[%emt 0:00:01]} h5 {[%emt 0:00:02]} 9. Nd5 {[%emt 0:00:02]} Bxd5 {[%emt 0:00:03]} 10. exd5 {[%emt 0:00:01]} Nbd7 {[%emt 0:00:02]} 11. Qd2 {[%emt 0:00:01] White is slightly better.} Be7 {[%emt 0:00:13]} 12. O-O-O {[%emt 0:00:06]} Qc7 {[%emt 0:00:06]} 13. c4 {[%emt 0:00:05]} a5 {[%emt 0:00:04][%cal Ba6a5,Ba5a4,Ba4a3][%mdl 32]} 14. Kb1 {[%emt 0:00:01]} a4 {[%emt 0:00:02]} 15. Na1 {[%emt 0:00:14]} a3 {[%emt 0:00:03]} 16. b3 {[%emt 0:00:02]} O-O {[%emt 0:00:01]} 17. Nc2 {[%emt 0:00:02]} Rfe8 {[%emt 0:00:08]} 18. Be2 {[%emt 0:00:04]} Nc5 {[%emt 0:00:16]} 19. g3 {[%emt 0:00:32]} (19. b4 $14 Ncd7 20. Qd3) 19... Nfd7 {[%emt 0:00:06]} (19... b5 $11) 20. h3 {[%emt 0:00:09]} (20. b4 $16) 20... Bf6 $11 {[%emt 0:00:06]} 21. Nb4 {[%emt 0:00:34]} (21. Rhf1 $14) 21... Qa5 {[%emt 0:00:35]} (21... e4 $15 22. f4 Nxb3 23. axb3 a2+ 24. Nxa2 Nc5 25. Bxc5 (25. Bxh5 $2 b5 $19) 25... Qxc5) 22. f4 $2 {[%emt 0:00:24][%mdl 8192]} (22. g4 $11) 22... e4 $2 {[%emt 0:01:04]} (22... Ne4 $19 23. f5 Nxd2+ 24. Bxd2 Qb6) 23. Rh2 {[%emt 0:00:42]} (23. g4 $11 {keeps the balance.}) 23... Bb2 {[%emt 0:00:12]} (23... Nd3 $1 $17 {[%cal Rd3b4]} 24. Nxd3 exd3 25. Qxd3 (25. Qxa5 $2 dxe2 26. Re1 Rxa5 $19) 25... Nc5) 24. Kc2 {[%emt 0:00:16]} (24. Qe1 $11) 24... Rac8 {[%emt 0:00:13]} (24... Nb6 $17) 25. Kb1 {[%emt 0:00:07]} Ra8 {[%emt 0:00:05]} (25... Nb6 $11) 26. Kc2 $17 {[%emt 0:00:00][%cal Oc2b1]} Rac8 {[%emt 0:00:00]} (26... Nb6 $17 27. Bxh5 Nxb3 28. Bxb6 (28. axb3 $2 Nxc4 $19) 28... Nxd2 29. Bxa5 Nxc4) 27. Qe1 $2 {[%emt 0:00:08]} (27. Kb1 $11) 27... Nb6 $1 {[%emt 0:00:10][%cal Ob6c4]} 28. Kb1 {[%emt 0:00:03]} (28. g4 $17 {might work better.}) 28... Ra8 $2 {[%emt 0:00:01]} (28... Nba4 $1 $19 {[%cal Ra4c3]} 29. bxa4 Nxa4) 29. Nc2 {[%emt 0:00:12]} (29. Bf1 $1 $11 {remains equal.}) 29... Bc3 $1 {[%emt 0:00:01]} 30. Bd2 {[%emt 0:00:00]} (30. b4 $1 $15 Bxe1 31. bxa5 Bxa5 (31... Bxg3 32. Rg2 $16) 32. Nxa3) 30... Bxd2 $2 (30... Nba4 $1 $17 {[%cal Oc5b3] aiming for ...Nxb3!} 31. b4 Bxd2 32. Qxd2 e3) 31. Qxd2 $11 {[%emt 0:00:01]} Qa7 {[%emt 0:00:10]} (31... Qxd2 $14 32. Rxd2 e3) 32. Ne3 {[%emt 0:00:04]} (32. Bxh5 $18 Nd3 33. Qe3) 32... Nba4 {[%emt 0:00:03]} (32... g6 $16) 33. bxa4 {[%emt 0:00:06]} (33. Nf5 $18 {[%cal Od2d4] Qd4! is the strong threat.} Qb6 34. Qd4 (34. Bxh5 g6 $11)) 33... Nxa4 $2 {[%emt 0:00:01][%mdl 8192]} (33... Qb6+ $1 $14 34. Ka1 Nd3) 34. Qd4 $18 {[%emt 0:00:01]} (34. Bxh5 b5 35. Qd4 (35. cxb5 Rec8 $11) 35... bxc4 36. Qxa7 (36. Nxc4 Reb8+ 37. Ka1 Qxd4+ 38. Rxd4 Nc3 $11) 36... Rxa7) 34... Qa5 {[%emt 0:00:01]} 35. Kc2 {[%emt 0:00:02] Prevents Nc3.} (35. Bxh5 Nc3+ 36. Kc2 Nxd1 37. Bxd1 Qb4 $18) 35... b5 {[%emt 0:00:01]} 36. Rb1 {[%emt 0:00:02]} (36. Bxh5 g6 $18) 36... Rac8 {[%emt 0:00:02]} (36... bxc4 $142 37. Nf5 (37. Bxh5 Nb2 $18) 37... f6 38. Nxd6 (38. Bxc4 Nb2 $11) (38. Rb7 Reb8 $16) 38... Reb8 39. Nxc4 (39. Qxe4 $2 Rb2+ 40. Rxb2 Qc3+ 41. Kd1 Nxb2#) (39. Rxb8+ Rxb8 40. Nxc4 Qe1 $18) 39... Rc8) 37. Rhh1 {[%emt 0:00:01]} (37. Bxh5 Rc7 $18) (37. Nf5 $142 {[%csl Gf5][%cal Rd4g7]} f6 38. Nxd6) 37... bxc4 $2 {[%emt 0:00:02]} (37... Nb2 38. Rxb2 (38. Bxh5 $2 Nxc4 39. Kd1 Nxe3+ 40. Qxe3 Rc3 $19) 38... axb2) 38. Nxc4 $2 {[%emt 0:00:02]} (38. Nf5 $18 {[%csl Gf5][%cal Rd4g7]} f6 39. Nxd6 (39. Bxc4 $2 Nb2 $19)) 38... e3 {[%emt 0:00:01][%cal Oe8e4] ...Re4! would now be deadly.} 39. Rhc1 $2 {[%emt 0:00:02][%mdl 8192]} (39. Bxh5 $2 Rxc4+ 40. Qxc4 Qd2+ 41. Kb3 Nc5+ $19) (39. Rhd1 $11) 39... Nb2 $2 {[%emt 0:00:03]} (39... Re4 $1 $19 {[%cal Re4d4]} 40. Rb5 (40. Qxe4 {gets mated.} Qd2+ 41. Kb3 Nc5+ 42. Kxa3 Ra8+) 40... Rxc4+ (40... Qxb5 41. Qxe4 Qb2+ 42. Kd1 $19) 41. Bxc4 Rxd4 42. Rxa5 Rxc4+ 43. Kb1 Nc3+ (43... Rxc1+ 44. Kxc1 e2 45. Kd2 $18) 44. Rxc3 Rxc3 45. Ra8+ Kh7) 40. Qc3 {[%emt 0:00:02][%mdl 8192]} (40. Rxb2 $17 {nothing else works.} Rxc4+ 41. Bxc4 axb2 42. Qxb2) 40... Nxc4 $2 {[%emt 0:00:02]} (40... Qxd5 $19 {[%cal Rb2c4]} 41. Rxb2 Qe4+ (41... axb2 $2 42. Kxb2 Qb7+ 43. Qb3 $19) 42. Kb3 axb2 43. Kxb2 d5) 41. Bxc4 $4 {[%emt 0:00:01][%mdl 8192]} (41. Qxa5 $1 $11 {and White stays safe.} Nxa5+ 42. Kd3) 41... Qa4+ {[%emt 0:00:00]} 42. Kd3 {[%emt 0:00:01][%cal Bc2d3,Bd3e3,Be3f3,Bf3g2,Bg2h2][%mdl 32]} e2 $2 {[%emt 0:00:01]} (42... Qd7 $1 $19 {[%cal Rd7f5] Strongly threatening ...Qf5+.} 43. Qe1 (43. Qxa3 $2 {loses.} Qf5+ 44. Ke2 Qxh3 $19) 43... Qf5+ (43... Qxh3 44. Bb5 $17) 44. Ke2 Qxh3) 43. Re1 {[%emt 0:00:01][%cal Ob1c1] [#]} Rxc4 $1 {[%emt 0:00:03]} 44. Qxc4 {[%emt 0:00:01] [#]} Re3+ $1 {[%emt 0:00:02]} 45. Kxe3 {[%emt 0:00:00]} Qxc4 {[%emt 0:00:00]} 46. Rxe2 {[%emt 0:00:02]} Qxd5 $15 {[%emt 0:00:01][%mdl 4096] Endgame. KQ-KRR} (46... Qc3+ $15 47. Kf2 Qc5+ 48. Kf1 Qxd5 49. Rb8+ Kh7) 47. Rb3 {[%emt 0:00:01]} (47. Rb8+ $11 Kh7 48. h4) 47... Qc5+ {[%emt 0:00:01]} 48. Kf3 {[%emt 0:00:01]} Qc1 {[%emt 0:00:03]} (48... h4 $5) 49. Kg2 {[%emt 0:00:03] Inhibits Qh1+.} Kh7 {[%emt 0:00:01]} 50. h4 {[%emt 0:00:00]} d5 {[%emt 0:00:02]} 51. Rd3 {[%emt 0:00:01]} Qc4 {[%emt 0:00:03]} 52. Red2 {[%emt 0:00:01]} Qe4+ {[%emt 0:00:02]} 53. Kh2 {[%emt 0:00:00]} Qb4 {[%emt 0:00:06]} 54. Rxd5 {[%emt 0:00:02]} g6 {[%emt 0:00:00]} 55. Rd7 {[%emt 0:00:01]} Kg7 {[%emt 0:00:02]} 56. R7d4 {[%emt 0:00:01]} Qc3 {[%emt 0:00:02]} 57. R4d3 {[%emt 0:00:01]} Qb4 {[%emt 0:00:01]} 58. Rf2 {[%emt 0:00:01]} Qc5 {[%emt 0:00:03]} 59. Rdf3 {[%emt 0:00:02]} Kf6 {[%emt 0:00:05]} 60. Re2 {[%emt 0:00:03]} Qb4 {[%emt 0:00:04]} 61. Rb3 {[%emt 0:00:02]} Qc5 {[%emt 0:00:01]} 62. Rbe3 {[%emt 0:00:04]} Qb4 {[%emt 0:00:03]} 63. Re5 {[%emt 0:00:03]} Qc3 {[%emt 0:00:03]} 64. Kg2 {[%emt 0:00:01]} Qc6+ {[%emt 0:00:01]} 65. Kh2 {[%emt 0:00:01]} Qc3 66. Rf2 {[%emt 0:00:03]} Qd4 {[%emt 0:00:03]} 67. Kg2 {[%emt 0:00:04]} Qc3 {[%emt 0:00:01]} 68. Rg5 {[%emt 0:00:10]} Qc6+ {[%emt 0:00:02]} 69. Kg1 {[%emt 0:00:01]} Qc1+ {[%emt 0:00:01]} 70. Kh2 {[%emt 0:00:01]} Qe1 {[%emt 0:00:04]} 71. Rg2 {[%emt 0:00:01]} Qc1 {[%emt 0:00:02] [#]} 72. f5 {[%emt 0:00:04]} Kg7 {[%emt 0:00:05]} (72... gxf5 $11 73. Rxh5 Qf1) 73. fxg6 $14 {[%emt 0:00:01]} fxg6 {[%emt 0:00:01]} 74. Re5 {[%emt 0:00:03]} Kf6 {[%emt 0:00:01]} 75. Rg5 {[%emt 0:00:03]} Kg7 $1 {[%emt 0:00:01]} 76. Re2 {[%emt 0:00:01]} Kf6 {[%emt 0:00:02]} 77. Rge5 {[%emt 0:00:02]} Qc3 {[%emt 0:00:02]} 78. R5e3 {[%emt 0:00:01]} Qc1 {[%emt 0:00:01]} 79. Kg2 {[%emt 0:00:01]} Qc5 {[%emt 0:00:03]} 80. Rf3+ {[%emt 0:00:02]} Kg7 {[%emt 0:00:01]} 81. Ref2 {[%emt 0:00:01]} Qc1 $2 {[%emt 0:00:02][%mdl 8192] [#]} ({Black should play} 81... Qd5 $14) 82. Rf7+ $1 $18 {[%emt 0:00:01]} Kh6 {[%emt 0:00:01]} 83. R7f6 {[%emt 0:00:04] Inhibits Qc6+.} Kg7 {[%emt 0:00:00]} 84. R6f4 {[%emt 0:00:01]} Qc6+ {[%emt 0:00:02]} 85. Kh2 {[%emt 0:00:01]} Qc1 {[%emt 0:00:01]} 86. R4f3 {[%emt 0:00:01]} Qc5 {[%emt 0:00:01]} 87. Re2 {[%emt 0:00:01]} Qc1 {[%emt 0:00:05]} 88. Re7+ {[%emt 0:00:08]} Kg8 {[%emt 0:00:01]} 89. Rb3 {[%emt 0:00:05]} ({White should try} 89. Rfe3 $14) 89... Qc2+ $11 {[%emt 0:00:03]} 90. Kh3 {[%emt 0:00:01] White threatens Rb8+ and mate.} Qc8+ {[%emt 0:00:00]} 91. Kg2 {[%emt 0:00:03] Active counter play!} Qc2+ {[%emt 0:00:02]} 92. Kh3 {[%emt 0:00:04]} ({Better is} 92. Kf1 $1 $14 Qc4+ 93. Re2) 92... Qc8+ {[%emt 0:00:01]} 93. Kh2 {[%emt 0:00:01][%cal Ob3e3]} Qc2+ {[%emt 0:00:00]} 94. Kh3 {[%emt 0:00:03] A wild game.   Weighted Error Value: White=0.79/Black=0.82.  Loses game:     	White=3     	Black=2      Missed win:     	---       	Black=5      Mistake:       	White=16    	Black=12     Inaccurate:     	White=12    	Black=13     OK:         	White=21    	Black=20     Best:        	White=5     	Black=5      Strong:       	White=1     	Black=3      Brilliant:      	---       	Black=1} 1/2-1/2